[Event "XTX Markets London Masters 2024"]
[Site "London"]
[Date "2024.11.30"]
[Round "2.1"]
[White "Kistrup, Nicolai"]
[Black "Sadhwani, Raunak"]
[Result "0-1"]
[ECO "B22"]
[WhiteElo "2420"]
[BlackElo "2677"]
[Annotator "TA"]
[PlyCount "108"]
[EventDate "2024.11.28"]
[EventType "swiss"]
[EventCountry "ENG"]
[SourceTitle "playchess.com"]
[Source "ChessBase"]
[SourceQuality "1"]
[TimeControl "40/5400+30:1800+30"]

{[%evp 38,108,-8,-10,35,40,35,32,50,0,0,-50,-20,-34,-12,-19,-17,-38,-5,-39,-55,-94,-66,-56,-75,-89,-78,-74,-60,-204,-169,-299,-287,-323,-295,-360,-354,-299,-345,-353,-286,-330,-295,-288,-231,-367,-345,-312,-277,-342,-337,-277,-158,-158,-158,-243,-252,-252,-252,-252,-252,-252,-237,-487,-463,-491,-473,-435,-391,-1495,-1421,-6095,-4501]} 1. e4 {[%emt 0:00:02]} c5 {[%emt 0:06:09]} 2. Nf3 {[%emt 0:01:16]} e6 {[%emt 0:01:24]} 3. c3 {[%emt 0:01:26]} d5 {[%emt 0:01:01]} 4. exd5 {[%emt 0:00:10]} Qxd5 {[%emt 0:00:06]} 5. d4 {[%emt 0:00:46]} Nf6 {[%emt 0:00:06]} 6. Na3 {[%emt 0:01:12]} Qd8 {[%emt 0:08:30]} 7. dxc5 {[%emt 0:08:40] B22: Sicilian: 2 c3.} Qxd1+ {[%emt 0:03:20]} 8. Kxd1 {[%emt 0:00:06]} Bxc5 {[%emt 0:00:03]} 9. Nb5 {[%emt 0:02:34]} Na6 {[%emt 0:03:27]} 10. b4 {[%emt 0:01:38]} Bxf2 {[%emt 0:02:13]} 11. a4 {[%emt 0:01:54]} Nd5 $146 {[%emt 0:04:38]} ({Predecessor:} 11... Ke7 12. Kc2 Bd7 13. Kb3 Bc6 14. Ra2 Bb6 15. a5 Bc7 16. Be3 Nd5 17. Bd4 f6 18. Nxa7 {0-1 Kollars,D (2643)-Andreikin,D (2729) Titled Tuesday intern op 28th Jun Early blitz 2022 (6)}) 12. Bd3 {[%emt 0:16:59]} Be3 {[%emt 0:03:50]} 13. Ba3 {[%emt 0:05:39]} O-O {[%emt 0:04:42]} 14. Kc2 {[%emt 0:06:51]} Bd7 {[%emt 0:10:15]} 15. Kb3 {[%emt 0:06:35]} Rfd8 {[%emt 0:03:34]} 16. Rhe1 {[%emt 0:08:27]} Bc6 {[%emt 0:15:27]} 17. Nbd4 {[%emt 0:16:31]} Be8 {[%emt 0:03:09]} 18. b5 {[%emt 0:13:02]} Nac7 {[%emt 0:00:21]} 19. Rad1 {[%emt 0:01:07]} Bh6 {[%emt 0:06:36]} (19... Bf2 $15 20. Re2 Bxd4) 20. Nc2 {[%emt 0:01:32]} g5 {[%emt 0:06:06]} 21. c4 {[%emt 0:01:01]} Nf4 {[%emt 0:01:09]} 22. Bf1 {[%emt 0:01:41]} Ng6 {[%emt 0:00:00]} 23. g4 {[%emt 0:01:14]} (23. Rxd8 $14 Rxd8 24. Ne3) 23... f6 {[%emt 0:00:46]} 24. Bd6 {[%emt 0:01:04]} ({Better is} 24. Rxd8 $11 Rxd8 25. Bc5) 24... Rac8 $15 {[%emt 0:00:01]} 25. c5 {[%emt 0:00:24]} Bf8 {[%emt 0:01:46]} 26. Bc4 {[%emt 0:00:19]} Bf7 {[%emt 0:02:08]} 27. Nb4 {[%emt 0:00:54]} Nf4 {[%emt 0:04:46]} 28. h4 {[%emt 0:00:40]} Ng2 {[%emt 0:02:52]} 29. Re2 {[%emt 0:00:36]} (29. Bxc7 Rxd1 30. Rxd1 Rxc7) 29... Nxh4 {[%emt 0:00:18]} 30. Nxh4 {[%emt 0:00:22]} gxh4 {[%emt 0:00:01]} 31. Red2 {[%emt 0:00:40]} Bh6 {[%emt 0:05:28]} 32. Rd3 {[%emt 0:00:16]} Ne8 {[%emt 0:00:04]} (32... Bf8 33. c6 Rxd6 34. Rxd6 Bxd6 35. Rxd6 $11) 33. Be7 {[%emt 0:00:41]} (33. a5 $1 $15) 33... Rxd3+ $19 {[%emt 0:00:16]} 34. Rxd3 {[%emt 0:00:38]} (34. Nxd3 $142 e5 35. Nf2) 34... Rc7 $19 {[%emt 0:01:12]} 35. c6 {[%emt 0:00:32]} Rxe7 {[%emt 0:00:49]} 36. Rd7 {[%emt 0:00:07]} Kf8 {[%emt 0:00:02]} ({Wrong is} 36... Rxd7 $2 37. cxd7 h3 38. Bf1 $18 (38. d8=B $2 h2 $19)) 37. cxb7 {[%emt 0:00:30]} Bf4 {[%emt 0:00:04]} ({And not} 37... Rxd7 38. b8=Q $11 (38. b8=B $2 e5 $19)) 38. Rxe7 {[%emt 0:00:14]} Kxe7 {[%emt 0:00:01]} 39. a5 {[%emt 0:00:58]} Kd7 {[%emt 0:02:40]} 40. b6 {[%emt 0:00:40]} axb6 {[%emt 0:00:24]} 41. axb6 {[%emt 0:19:20]} (41. Bb5+ $142 Kc7 42. a6) 41... Bb8 {[%emt 0:01:46]} 42. Na6 {[%emt 0:06:35]} Kc6 {[%emt 0:00:39]} 43. Nxb8+ {[%emt 0:01:11]} Kxb7 {[%emt 0:00:04]} 44. Nd7 {[%emt 0:00:37]} h3 {[%emt 0:10:25]} (44... Kc8 $19 45. Nf8 Nd6) 45. Bf1 $17 {[%emt 0:00:41] [#]} e5+ $1 {[%emt 0:00:21]} 46. Kc3 {[%emt 0:01:53]} (46. Kb4 $17) 46... Bd5 $19 {[%emt 0:00:27]} 47. Bxh3 {[%emt 0:00:38] [#]} h6 $1 {[%emt 0:00:19]} 48. Kd3 {[%emt 0:02:45]} Kc6 {[%emt 0:01:26]} 49. Nf8 {[%emt 0:00:24]} Kxb6 {[%emt 0:00:13]} 50. Ng6 $2 {[%emt 0:00:26]} (50. Bf1) 50... Kc5 $19 {[%emt 0:01:49]} 51. Ke3 {[%emt 0:00:22]} Bf7 {[%emt 0:02:39]} 52. Ne7 {[%emt 0:00:59]} Be6 {[%emt 0:01:55]} 53. g5 $2 {[%emt 0:00:39]} (53. Kf3) 53... hxg5 $19 {[%emt 0:00:32]} 54. Bxe6 {[%emt 0:00:07]} Kd6 {[%emt 0:00:02]} 0-1

[Event "XTX Markets London Masters 2024"]
[Site "London"]
[Date "2024.11.30"]
[Round "2.2"]
[White "Golding, Alex"]
[Black "Zhang, Pengxiang"]
[Result "0-1"]
[ECO "B48"]
[WhiteElo "2404"]
[BlackElo "2567"]
[Annotator "TA"]
[PlyCount "104"]
[EventDate "2024.11.28"]
[EventType "swiss"]
[EventCountry "ENG"]
[SourceTitle "playchess.com"]
[Source "ChessBase"]
[SourceQuality "1"]
[TimeControl "40/5400+30:1800+30"]

{[%evp 26,104,-27,-21,-20,-24,-20,-14,-3,-23,-13,-20,-14,-19,-17,-18,-20,-38,-37,-48,-39,-175,-176,-206,-97,-91,-91,-247,-59,-59,0,-294,-313,-301,-281,-369,-377,-377,-377,-389,-385,-384,-384,-488,-483,-480,-492,-481,-480,-29983,-478,-485,-481,-474,-436,-484,-476,-492,-414,-473,-480,-530,-453,-491,-485,-532,-489,-585,-549,-734,-577,-592,-592,-593,-599,-599,-537,-788,-773,-752,-718]} 1. e4 {[%emt 0:00:16]} c5 {[%emt 0:00:28]} 2. Nf3 {[%emt 0:01:09]} e6 {[%emt 0:00:07]} 3. d4 {[%emt 0:02:03]} cxd4 {[%emt 0:00:05]} 4. Nxd4 {[%emt 0:00:05]} Nc6 {[%emt 0:00:16]} 5. Nc3 {[%emt 0:01:56]} Qc7 {[%emt 0:00:46]} 6. Be3 {[%emt 0:07:49]} a6 {[%emt 0:00:23]} 7. Nxc6 {[%emt 0:00:36]} dxc6 {[%emt 0:05:24] B48: Sicilian: Taimanov: 5 Nc3 Qc7 6 Be3 a6 without Be2.} 8. Qf3 {[%emt 0:03:32]} Nf6 {[%emt 0:05:07]} 9. Qg3 {[%emt 0:01:07]} e5 {[%emt 0:15:01]} 10. Be2 {[%emt 0:02:00]} Be6 {[%emt 0:08:37]} 11. O-O $146 {[%emt 0:02:43]} ({Predecessor:} 11. f4 Qa5 12. O-O-O exf4 13. Bxf4 Rc8 14. Rhe1 b5 15. e5 b4 16. exf6 bxc3 17. Bc4 gxf6 18. Qg4 {1-0 Lie,K (2528)-Brunello,S (2560) Olympiad-41 Tromsoe 2014 (6.4)}) 11... h5 {[%emt 0:09:22]} 12. h4 {[%emt 0:00:22]} Ng4 {[%emt 0:01:49]} 13. Na4 {[%emt 0:05:37]} Nxe3 {[%emt 0:11:00]} 14. Qxe3 {[%emt 0:00:09]} Be7 {[%emt 0:00:29]} 15. g3 {[%emt 0:04:04]} g6 {[%emt 0:09:39]} 16. Rfd1 {[%emt 0:07:17]} O-O {[%emt 0:02:09]} 17. Kg2 {[%emt 0:00:35]} Rad8 {[%emt 0:00:22]} 18. Nb6 {[%emt 0:06:11]} Rxd1 {[%emt 0:04:06]} 19. Rxd1 {[%emt 0:00:25]} Rd8 {[%emt 0:00:16]} (19... Bxa2 $2 20. Rd7 Qb8 21. Rxe7 $18) 20. Rxd8+ {[%emt 0:00:41]} Bxd8 {[%emt 0:01:33]} 21. Nc4 {[%emt 0:01:57]} b5 {[%emt 0:00:07]} 22. Nd2 {[%emt 0:00:30]} Bxa2 {[%emt 0:00:26]} 23. Nb3 {[%emt 0:04:48] [#]} (23. Qa3 $1 $15 Qa5 24. Qd6) 23... a5 $1 $19 {[%emt 0:03:00]} 24. Qc3 {[%emt 0:02:19]} b4 {[%emt 0:04:40]} (24... a4 $19 25. Nc1 Be6) 25. Qd3 $17 {[%emt 0:03:04]} Kg7 {[%emt 0:07:00]} 26. Qd1 $2 {[%emt 0:05:16]} (26. Nc5 $17) 26... Qb6 $2 {[%emt 0:04:08]} (26... a4 $19 27. Nc5 a3 28. bxa3 bxa3) 27. Qd6 $15 {[%emt 0:06:30]} Qc7 $2 {[%emt 0:00:12]} (27... Bxb3 $15 28. cxb3 Bc7) 28. Qd1 $1 $19 {[%emt 0:00:13]} a4 {[%emt 0:00:45]} 29. Nc5 {[%emt 0:00:21]} Qa7 {[%emt 0:00:12]} 30. Nxa4 {[%emt 0:11:41]} Qxa4 {[%emt 0:01:40]} 31. b3 {[%emt 0:00:33]} (31. Qxd8 Qxc2 32. Bxh5 Qxb2 (32... gxh5 33. Qg5+ Kh7 34. Qxh5+ Kg7 35. Qg5+ Kf8 36. Qd8+ Kg7 37. Qg5+ Kf8 38. Qd8+ Kg7 39. Qg5+ $11) (32... Qxe4+ 33. Bf3 $17) 33. Bxg6 fxg6 $19) 31... Qa5 {[%emt 0:01:26]} 32. Bc4 {[%emt 0:00:55]} Bb6 {[%emt 0:00:54]} 33. Qd7 {[%emt 0:01:12]} Qa7 {[%emt 0:00:08]} 34. Qxc6 {[%emt 0:01:12]} Bxf2 {[%emt 0:01:03]} 35. Qd6 {[%emt 0:00:34]} Bd4 {[%emt 0:01:57]} 36. Qxb4 {[%emt 0:00:14]} Bb1 {[%emt 0:00:08]} 37. Bd3 {[%emt 0:00:36]} (37. Qd2 $19) 37... Qa1 {[%emt 0:01:07]} (37... Bxc2 $142 38. Bxc2 Qa1 39. Qxd4 exd4 (39... Qxd4 {leads to mate.} 40. Kh1 Qc3 41. Kg2 Qxc2+ 42. Kf3 Qd2 43. b4 f5 44. b5 f4 45. gxf4 exf4 46. b6 Qe3+ 47. Kg2 Qe2+ 48. Kg1 f3 49. Kh1 Qg2#) 40. Bd3 Qb2+ 41. Kf3 Qxb3 42. Ke2 Qb2+ 43. Kd1 Qa1+ 44. Kd2 Qc3+ (44... Qg1 $2 45. e5 $19) 45. Ke2 Qc1 46. Ba6 Qe3+ 47. Kd1 d3 (47... Qxe4 {gets mated.} 48. Kd2 Qe3+ 49. Kc2 Qc3+ 50. Kb1 Qb3+ 51. Kc1 Qa3+ 52. Kd2 Qxa6 53. Kc2 Qe2+ 54. Kb3 d3 55. Kb4 d2 56. Kc5 d1=Q 57. g4 Qec2+ 58. Kb6 Qdb1+ 59. Ka7 Qa4#) 48. Bxd3 Qxd3+ 49. Kc1 Kf6 (49... Qxe4 50. Kb2 Qf3 51. Kc2 Kf6 52. Kd2 Ke5 53. Kc2 Kd4 54. Kb2 Kd3 55. Kb3 Qb7+ 56. Ka4 Kc4 57. Ka5 Qb5#) (49... Qxg3 50. Kd2 g5 51. hxg5 h4 52. Ke2 h3 53. g6 h2 54. gxf7 h1=Q 55. f8=B+ Kxf8 56. Kd2 Qhe1+ 57. Kc2 Qgc3#) 50. e5+ Kxe5 51. Kb2 Kd4 (51... Qxg3 52. Kc2 Kd4 53. Kb2 Kc4 54. Kc1 Qf2 55. Kb1 Kc3 56. Kc1 Qg1#) 52. g4 Qc3+ (52... hxg4 53. h5 gxh5 54. Kc1 Qe2 55. Kb1 Kc3 56. Kc1 Qf1#) 53. Kb1 Qd2 (53... hxg4 54. h5 Qb3+ 55. Kc1 Kc3 56. hxg6 Qc2#) 54. gxh5 Kc3 55. hxg6 Qb2#) 38. Qe1 $19 {[%emt 0:01:02]} Qb2 {[%emt 0:00:10]} 39. Qd1 {[%emt 0:00:22]} Ba2 {[%emt 0:00:36]} 40. Kh3 {[%emt 0:00:19]} Qc3 {[%emt 0:01:47]} 41. Kg2 {[%emt 0:34:31]} Be3 {[%emt 0:31:24]} 42. Kf3 {[%emt 0:02:56]} Bb6 {[%emt 0:00:14]} 43. Kg2 {[%emt 0:01:01]} Qb2 {[%emt 0:00:27]} 44. Kh3 {[%emt 0:01:52]} Qd4 {[%emt 0:00:43]} 45. Qf3 {[%emt 0:02:59]} Qf2 {[%emt 0:00:57]} 46. Qd1 {[%emt 0:00:52]} Bd4 {[%emt 0:00:35]} 47. Bc4 {[%emt 0:02:26]} Bc3 {[%emt 0:00:42]} 48. Qf1 {[%emt 0:01:45]} Qxf1+ {[%emt 0:00:00]} ({Worse is} 48... Qxc2 49. Qxf7+ Kh6 50. Qf8+ Kh7 51. Qg8+ Kh6 52. Qh8#) 49. Bxf1 {[%emt 0:00:00]} Bb1 {[%emt 0:00:00]} 50. Bd3 {[%emt 0:00:00]} Be1 {[%emt 0:00:00]} 51. g4 {[%emt 0:00:00]} Kf6 {[%emt 0:00:00]} 52. gxh5 {[%emt 0:00:00]} gxh5 {[%emt 0:00:00]} 0-1

[Event "XTX Markets London Masters 2024"]
[Site "London"]
[Date "2024.11.30"]
[Round "2.3"]
[White "Petrov, Martin"]
[Black "Roberson, Peter T"]
[Result "0-1"]
[ECO "A06"]
[WhiteElo "2548"]
[BlackElo "2432"]
[Annotator "TA"]
[PlyCount "52"]
[EventDate "2024.11.28"]
[EventType "swiss"]
[EventCountry "ENG"]
[SourceTitle "playchess.com"]
[Source "ChessBase"]
[SourceQuality "1"]
[TimeControl "40/5400+30:1800+30"]

{[%evp 9,52,8,10,5,12,-15,0,0,0,-10,-17,-15,0,-7,0,-94,0,-4,0,-18,-18,-100,-97,-337,-327,-332,-335,-339,-312,-344,-346,-491,-481,-466,-487,-725,-717,-982,-977,-982,-954,-1006,-994,-929,-910]} 1. Nf3 {[%emt 0:01:59]} d5 {[%emt 0:00:54][%cal Bd7d5,Bd5d4][%mdl 32]} 2. e3 {[%emt 0:00:18]} c5 {[%emt 0:04:00]} 3. b3 {[%emt 0:00:45]} Nc6 {[%emt 0:01:25]} 4. Bb5 {[%emt 0:02:03]} f6 {[%emt 0:00:37]} 5. c4 {[%emt 0:07:15]} d4 {[%emt 0:00:09]} 6. b4 {[%emt 0:04:48]} e5 {[%emt 0:00:10]} 7. d3 {[%emt 0:00:02]} Nge7 {[%emt 0:11:08]} 8. bxc5 {[%emt 0:02:20] Black must now prevent exd4. The position is equal.} Nf5 {[%emt 0:00:48]} 9. g4 {[%emt 0:07:42]} (9. e4 $5 Nfe7 $8 10. O-O $11) 9... Nfe7 {[%emt 0:05:12]} 10. exd4 {[%emt 0:00:05]} exd4 {[%emt 0:02:37]} 11. Qe2 {[%emt 0:11:24]} Bxg4 {[%emt 0:03:24]} 12. Nbd2 {[%emt 0:00:02] [#]} (12. Bxc6+ $1 $11 bxc6 13. Nbd2) 12... Qd7 {[%emt 0:19:35]} (12... Qc7 $1 $17 {aiming for ...0-0-0.} 13. h3 (13. Bxc6+ Qxc6 14. Rg1 h5 $17) 13... Bh5) 13. Ne4 {[%emt 0:02:34]} O-O-O {[%emt 0:01:27]} 14. Nd6+ {[%emt 0:20:47]} Kb8 {[%emt 0:00:19]} 15. Rb1 {[%emt 0:00:06]} (15. Rg1 $1 $11 {remains equal.} Ka8 16. Rxg4 Qxg4 17. Nf7) 15... Ng6 $17 {[%emt 0:27:43]} 16. Bxc6 $2 {[%emt 0:20:39] White does not recover from this.} (16. Qe4 $17 Ka8 (16... Bxd6 17. Bxc6 Bxf3 18. Qxf3 $11) 17. Bxc6 (17. Nxd4 $2 Bxd6 18. Nxc6 Rhe8 $19) 17... Qxc6 18. Qxg4 Bxd6 (18... Qxc5 $2 19. Nxb7 Re8+ 20. Be3 $18) (18... Ne5 19. Qe4 $11) 19. O-O (19. cxd6 $2 Ne5 $19) 19... Bxc5 20. Re1) 16... Qxc6 $19 {[%emt 0:00:05]} 17. Nxb7 {[%emt 0:00:05] [#]} (17. Rxb7+ $2 Ka8 18. Rg1 Bxf3 $19) 17... Kc8 {[%emt 0:02:50]} 18. Nxd8 {[%emt 0:00:58]} Kxd8 {[%emt 0:08:48]} 19. Qb2 {[%emt 0:08:51]} (19. Rb8+ Kc7 20. Rg1 Bxf3 $19 (20... Qxf3 $2 21. Qxf3 Bxf3 22. Rb5 $19)) 19... Bxc5 {[%emt 0:05:01] Strongly threatening ...Re8+.} (19... Qxf3 20. Qxd4+ Kc7 21. Kd2 Qxh1 22. Qxg4 Bxc5 (22... Qxh2 $2 23. Qf3 $19) 23. Qg3+ Kd7 24. Qg4+ Ke7 25. d4) 20. Qb8+ {[%emt 0:06:28]} (20. Nxd4 $2 Qxh1+ 21. Kd2 Qd1+ (21... Qxh2 $2 22. Nc6+ Ke8 23. Kc3 $19) 22. Kc3 Qe1+ 23. Qd2 Bxd4+ 24. Kb4 Re8 $19 (24... Bxf2 $2 25. Qxe1 Bxe1+ 26. Ka3 $19)) (20. Qb7 $142 Qxb7 (20... Bxf3 $2 21. Qxc6 Bxc6 22. Rb8+ Ke7 23. Rxh8 $19) (20... Qxf3 $2 21. O-O $19) (20... Re8+ $2 21. Kd2 $19) 21. Rxb7 Bxf3 22. Rb8+ Ke7 23. Rxh8 Nxh8 24. Rg1) 20... Kd7 {[%emt 0:00:01] Black is clearly winning.} ({Not} 20... Bc8 21. O-O (21. Qg3 $2 Bd6 $19) 21... Qxf3 22. Rb5 $19) 21. Rb7+ {[%emt 0:00:07]} Ke6 {[%emt 0:00:13][%cal Oc6f3]} 22. Qc7 {[%emt 0:00:18]} (22. Qg3 $142 Qxf3 (22... Bxf3 $2 23. Rc7 $19) 23. O-O Qxg3+ (23... Qxb7 $2 24. Qxg4+ Kf7 25. Re1 $19) 24. hxg3) 22... Bxf3 {[%emt 0:02:56] This pair of bishops is nice.} ({And not} 22... Qxf3 23. O-O Ne5 24. Re1 $11) 23. O-O {[%emt 0:01:53]} Qxb7 {[%emt 0:01:42]} 24. Qxc5 {[%emt 0:00:02]} Ne5 {[%emt 0:00:25] ...Qf7 would now be deadly.} 25. Qxd4 {[%emt 0:00:58]} Be2 {[%emt 0:00:41][%csl LRd3,LRf1] ( -> ...Nf3+)} 26. f4 {[%emt 0:00:15]} Bxf1 {[%emt 0:00:13] Weighted Error Value: White=0.74/Black=0.05 (flawless) .  Loses game:     	White=1     	---        Mistake:       	White=4     	Black=1      Inaccurate:     	White=2     	---        OK:         	White=6     	Black=7      Best:        	---       	Black=4} ({Weaker is} 26... Nxd3 27. Qe3+ Kf7 28. Qxe2 $17) 0-1

[Event "XTX Markets London Masters 2024"]
[Site "London"]
[Date "2024.11.30"]
[Round "2.4"]
[White "Efroimski, Marsel"]
[Black "Fier, Alexandr"]
[Result "1/2-1/2"]
[ECO "B51"]
[WhiteElo "2397"]
[BlackElo "2544"]
[Annotator "TA"]
[PlyCount "71"]
[EventDate "2024.11.28"]
[EventType "swiss"]
[EventCountry "ENG"]
[SourceTitle "playchess.com"]
[Source "ChessBase"]
[SourceQuality "1"]
[TimeControl "40/5400+30:1800+30"]

{[%evp 9,71,12,0,14,9,-13,13,14,16,-8,8,-1,6,0,8,0,11,-8,0,0,0,-11,-4,-83,7,0,22,35,22,-8,-8,-74,33,8,17,0,17,0,5,0,-8,-31,0,6,17,11,14,18,208,193,194,93,85,84,76,75,93,16,61,0,83,0,43,0]} 1. e4 {[%emt 0:00:46]} c5 {[%emt 0:00:06]} 2. Nf3 {[%emt 0:00:03]} d6 {[%emt 0:00:06]} 3. Bb5+ {[%emt 0:00:03]} Nd7 {[%emt 0:00:07]} 4. O-O {[%emt 0:00:20]} a6 {[%emt 0:00:32]} 5. Be2 {[%emt 0:00:05]} Ngf6 {[%emt 0:00:17]} 6. d3 {[%emt 0:00:11]} e6 {[%emt 0:00:39]} 7. c4 {[%emt 0:00:34]} b6 {[%emt 0:00:07]} 8. Nc3 {[%emt 0:00:53] The position is equal.} Bb7 {[%emt 0:00:05]} 9. Nd2 {[%emt 0:02:25]} g6 {[%emt 0:02:54]} 10. f4 {[%emt 0:00:31]} Bg7 {[%emt 0:00:04]} 11. Bf3 {[%emt 0:05:10]} Qc7 {[%emt 0:00:26]} 12. Qe1 {[%emt 0:06:32][%cal Oe4e5]} O-O {[%emt 0:01:42]} 13. Qh4 {[%emt 0:01:41] [#]} b5 $1 {[%emt 0:01:20]} 14. cxb5 {[%emt 0:06:37]} axb5 {[%emt 0:01:53]} 15. Nxb5 {[%emt 0:01:20]} Qb6 {[%emt 0:00:04]} 16. Nc3 {[%emt 0:05:39]} (16. a4 $11 {remains equal.} d5 17. e5) 16... d5 {[%emt 0:03:49]} (16... c4+ $17 17. Qf2 cxd3 18. Qxb6 Nxb6) 17. Kh1 $11 {[%emt 0:03:38]} Qa6 {[%emt 0:02:54]} 18. e5 {[%emt 0:03:45]} Ne8 {[%emt 0:01:19]} 19. Qe7 {[%emt 0:01:50]} Qc6 {[%emt 0:05:28]} 20. Nc4 {[%emt 0:06:48]} (20. Qh4 $11) 20... Nc7 {[%emt 0:04:51]} ({Better is} 20... Qc8 $17 21. Na3 Ra6) 21. Nd6 {[%emt 0:08:57] Black must now prevent Nxb7.} Ba6 {[%emt 0:00:42]} 22. Rd1 {[%emt 0:02:03]} (22. Be3 $5) 22... Ne8 {[%emt 0:10:58] [#]} 23. Nc4 $1 {[%emt 0:14:27]} Qc8 {[%emt 0:06:19]} 24. a4 {[%emt 0:14:49]} Rb8 {[%emt 0:06:54] Prevents a5} 25. Na3 {[%emt 0:00:30]} Nc7 {[%emt 0:00:05][%cal Og7f6]} (25... Nef6 $5 26. Ncb5 (26. exf6 Bxf6 27. Nxd5 exd5 $15) 26... Ne8 $16) 26. Qh4 {[%emt 0:05:44]} Rb3 {[%emt 0:03:41]} 27. Qf2 {[%emt 0:00:48]} d4 {[%emt 0:01:24]} 28. Ncb5 {[%emt 0:01:30]} Bxb5 {[%emt 0:01:20]} (28... Nxb5 $11 {and Black is okay.} 29. Nxb5 Bxb5 30. axb5 Rxb5) 29. axb5 $18 {[%emt 0:00:44]} Nxb5 {[%emt 0:01:40] [#]} 30. Nc4 {[%emt 0:02:12]} (30. Qc2 $1 $18 {[%cal Rc2b3] and White stays clearly on top.} Rxa3 31. bxa3) 30... Nc7 $16 {[%emt 0:00:35]} 31. Qc2 {[%emt 0:01:12]} Rb8 {[%emt 0:00:05]} 32. Nd6 {[%emt 0:01:41]} Qd8 {[%emt 0:00:04]} 33. Nb7 {[%emt 0:02:02] White is much more active.} (33. Bd2 $16) 33... Qc8 $1 $11 {[%emt 0:03:01]} 34. Nd6 {[%emt 0:00:09]} Qd8 {[%emt 0:00:03]} 35. Nb7 {[%emt 0:00:02]} Qc8 {[%emt 0:00:16]} 36. Nd6 {[%emt 0:00:36] Weighted Error Value: White=0.27 (precise) /Black=0.21 (precise) .  Loses game:     	---       	Black=1      Mistake:       	White=4     	Black=2      Inaccurate:     	White=3     	Black=2      OK:         	White=8     	Black=12     Best:        	---       	Black=2      Strong:       	---       	Black=1} 1/2-1/2

[Event "XTX Markets London Masters 2024"]
[Site "London"]
[Date "2024.11.30"]
[Round "2.7"]
[White "Badacsonyi, Stanley"]
[Black "Ghasi, Ameet K"]
[Result "1/2-1/2"]
[ECO "E73"]
[WhiteElo "2298"]
[BlackElo "2503"]
[Annotator "TA"]
[PlyCount "73"]
[EventDate "2024.11.28"]
[EventType "swiss"]
[EventCountry "ENG"]
[SourceTitle "playchess.com"]
[Source "ChessBase"]
[SourceQuality "1"]
[TimeControl "40/5400+30:1800+30"]

{[%evp 12,73,48,43,26,23,42,21,28,23,38,20,45,23,42,27,42,2,20,-22,49,35,73,20,20,0,30,50,47,29,37,4,12,6,2,-6,0,-53,-66,-58,0,0,0,-29,-9,-53,-47,-212,-41,-47,-45,-98,-39,-9,0,-91,-12,-6,-29,-28,30,20,44,38]} 1. d4 {[%emt 0:00:02]} Nf6 {[%emt 0:01:55]} 2. c4 {[%emt 0:00:07]} g6 {[%emt 0:01:07]} 3. Nc3 {[%emt 0:01:29]} Bg7 {[%emt 0:02:40]} 4. e4 {[%emt 0:00:08]} d6 {[%emt 0:00:02]} 5. Be2 {[%emt 0:00:14]} O-O {[%emt 0:00:17]} 6. Be3 {[%emt 0:00:05]} Nc6 {[%emt 0:01:59]} 7. d5 {[%emt 0:01:56]} Ne5 {[%emt 0:01:00]} 8. f4 {[%emt 0:00:04]} Neg4 {[%emt 0:00:19]} 9. Bd2 {[%emt 0:00:06]} Nh6 $1 {[%emt 0:00:16] The position is equal.} 10. Nf3 {[%emt 0:05:54]} c6 {[%emt 0:03:35]} 11. h3 {[%emt 0:03:59] Threatening g4.} cxd5 {[%emt 0:31:53]} 12. cxd5 {[%emt 0:00:27]} e6 {[%emt 0:03:50]} 13. dxe6 $1 {[%emt 0:06:11]} fxe6 {[%emt 0:02:02]} 14. Qb3 {[%emt 0:07:34]} Nh5 {[%emt 0:05:10]} 15. Bc4 {[%emt 0:03:37]} Qe7 {[%emt 0:03:32]} (15... Ng3 $11 16. Rg1 (16. Bxe6+ Bxe6 17. Qxe6+ Nf7 $15) 16... Bxc3 17. Bxc3 (17. Bxe6+ Bxe6 18. Qxe6+ Nf7 $15) 17... Rxf4) 16. Ne2 $14 {[%emt 0:00:47]} Nf6 {[%emt 0:03:46][%cal Bh5f6,Bf6e4,Be4c5][%mdl 32]} 17. e5 {[%emt 0:19:09] White is more active.} (17. Ng5 $1 $16) 17... Ne4 $1 $11 {[%emt 0:00:21]} 18. exd6 {[%emt 0:01:25]} Qxd6 {[%emt 0:04:45][%cal Ob7b5] Strongly threatening ...b5!} (18... Nxd6 $5 19. Bd3 b6 $11) 19. Bb4 {[%emt 0:02:49]} Nc5 $1 {[%emt 0:00:14]} (19... Qb6 20. Bxf8 Qf2+ 21. Kd1 Bxf8 22. Ned4 $18 (22. Bxe6+ Kh8 $15)) 20. Qa3 {[%emt 0:01:14]} (20. Rd1 $5 Qb6 21. Qa3 $14) 20... b6 {[%emt 0:00:23]} 21. Rd1 {[%emt 0:00:10]} Qc6 {[%emt 0:14:20]} 22. O-O {[%emt 0:01:23]} Nf5 $1 {[%emt 0:03:13]} 23. Rfe1 {[%emt 0:08:44]} Bb7 {[%emt 0:01:36]} 24. Bxc5 {[%emt 0:02:30]} (24. Nc3 $11) 24... bxc5 $15 {[%emt 0:02:35]} 25. Qb3 {[%emt 0:00:58]} Rf6 {[%emt 0:01:19]} (25... Kh8 $1 $15) 26. Rd2 {[%emt 0:02:20][%cal Oe2g3]} Kh8 {[%emt 0:04:58]} 27. Kh2 {[%emt 0:01:19]} Rb8 {[%emt 0:02:40]} 28. Bb5 {[%emt 0:01:55]} Qb6 {[%emt 0:00:37] White must now prevent ...Bxf3.} 29. Ne5 {[%emt 0:01:18] [#]} (29. Bc4 $1 $15) 29... Bd5 $2 {[%emt 0:01:37] A strong pair of Bishops.} ({Black should try} 29... c4 $1 $19 {[%cal Rc4b3]} 30. Qb4 (30. Nxc4 $2 Qf2 $19) (30. Qxc4 $2 Bd5 $19) (30. Bxc4 $2 Qf2 $19) 30... Qf2) 30. Bc4 {[%emt 0:00:27]} Qc7 {[%emt 0:00:29] Dodges Nd7} 31. Qd3 {[%emt 0:00:42]} (31. Qc3 $15 Rd8 32. b4) 31... Ne7 {[%emt 0:00:52]} ({Better is} 31... Rd8 $17 {Hoping for ...Rff8.} 32. Bxd5 Rxd5 (32... exd5 33. Rc1 $17)) 32. g3 {[%emt 0:00:31]} Rf5 {[%emt 0:01:58][%cal Bf6f5,Bf5d5,Bd5d6][%mdl 32]} 33. Ng4 {[%emt 0:01:35] [#]} (33. Bxd5 $11 exd5 34. Nc3) 33... Bxc4 {[%emt 0:00:34]} (33... Bxb2 $2 {is the wrong capture.} 34. Rxb2 Rxb2 35. Qc3+ e5 36. Qxb2 $18 (36. Bxd5 Rxe2+ 37. Rxe2 Nxd5 $16)) (33... g5 $1 $17 {[%cal Rg5f4] ...gxf4 would now be deadly.} 34. Ne3 Rff8 35. Bxd5 exd5) 34. Qxc4 $11 {[%emt 0:00:07]} Rd5 {[%emt 0:00:07]} 35. Rc2 {[%emt 0:01:09]} h5 {[%emt 0:00:26]} (35... Bxb2 $2 {loses.} 36. Rxb2 Nf5 (36... Rxb2 $2 37. Qc3+ e5 38. Qxb2 $18) 37. Qc3+ Ng7 38. Rxb8+ Qxb8 39. Nf6 $18 (39. Ng1 h5 $18)) (35... Rxb2 $142 36. Rxb2 Bxb2) 36. Ne3 {[%emt 0:00:17]} Rd6 {[%emt 0:00:10] [#]} 37. b4 $1 {[%emt 0:01:40] Weighted Error Value: White=0.30/Black=0.23 (precise) .  Loses game:     	White=1     	---        Missed win:     	---       	Black=1      Mistake:       	White=4     	Black=5      Inaccurate:     	White=5     	Black=2      OK:         	White=9     	Black=10     Best:        	White=1     	---        Strong:       	White=1     	Black=4} 1/2-1/2